fUSD/lending_fUSD_20250530
["ID","MTS","AMOUNT","RATE_DAILY","PERIOD"]
[363162899,1748604687572,-2921.34,0.00024108,2]
[363162900,1748604687582,-794.62,0.00024108,2]
[363162901,1748604687592,-3174.36,0.00024108,2]
[363162902,1748604687601,-6568.92,0.00024108,2]
[363162903,1748604687610,-1736.8,0.00024108,2]
[363162904,1748604687619,-1403.38,0.00024108,2]
[363162905,1748604687629,-670.15,0.00024108,2]
[363162906,1748604687638,-9101.03,0.00024108,2]
[363162907,1748604687650,-18152.04,0.00024108,2]
[363162908,1748604687659,-27441.36,0.00024108,2]
[363162909,1748604687669,-751.61,0.00024108,2]
[363162910,1748604687678,-8935.23,0.00024108,2]
[363162911,1748604687688,-2810.26,0.00024108,2]
[363162912,1748604687698,-1874.07,0.00024108,2]
[363162913,1748604687708,-1242.14,0.00024108,2]
[363162914,1748604687717,-1551.25,0.00024108,2]
[363162915,1748604687727,-672.13,0.00024108,2]
[363162916,1748604687737,-300.0,0.00024108,2]
[363162917,1748604687746,-628.57,0.00024109,2]
[363162918,1748604687755,-420.0,0.00024109,2]
[363162919,1748604687764,-420.0,0.00024109,2]
[363162920,1748604687775,-166.24511998,0.00024109,2]
[363162921,1748604687784,-420.0,0.00024109,2]
[363162922,1748604687794,-433.48,0.00024109,2]
[363162923,1748604687803,-205.48097539,0.00024109,2]
[363162924,1748604687812,-640.5,0.00024109,2]
[363162925,1748604687822,-420.0,0.00024109,2]
[363162926,1748604687831,-420.0,0.00024109,2]
[363162927,1748604687840,-539.07,0.00024109,2]
[363162928,1748604687849,-465.13,0.00024109,2]
[363162929,1748604687858,-420.0,0.00024109,2]
[363162930,1748604687868,-465.38,0.00024109,2]
[363162931,1748604687878,-420.0,0.00024109,2]
[363162932,1748604687891,-250.0,0.00024109,2]
[363162933,1748604687902,-420.0,0.00024109,2]
[363162934,1748604687911,-420.0,0.00024109,2]
[363162935,1748604687920,-420.0,0.00024109,2]
[363162936,1748604687930,-468.76,0.00024109,2]
[363162937,1748604687939,-420.0,0.00024109,2]
[363162938,1748604687949,-420.0,0.00024109,2]
[363162939,1748604687959,-420.0,0.00024109,2]
[363162940,1748604687969,-521.55653769,0.00024109,2]
[363162941,1748604687979,-420.0,0.00024109,2]
[363162942,1748604687988,-420.0,0.00024109,2]
[363162943,1748604687998,-420.0,0.00024109,2]
[363162944,1748604688008,-452.19,0.00024109,2]
[363162945,1748604688018,-420.0,0.00024109,2]
[363162946,1748604688027,-420.0,0.00024109,2]
[363162947,1748604688036,-420.0,0.00024109,2]
[363162948,1748604688046,-645.55,0.00024109,2]
[363162949,1748604688056,-420.0,0.00024109,2]
[363162950,1748604688065,-420.0,0.00024109,2]
[363162951,1748604688075,-420.98,0.00024109,2]
[363162952,1748604688084,-420.0,0.00024109,2]
[363162953,1748604688093,-420.0,0.00024109,2]
[363162954,1748604688103,-420.0,0.00024109,2]
[363162955,1748604688112,-420.0,0.00024109,2]
[363162956,1748604688122,-441.38,0.00024109,2]
[363162957,1748604688131,-420.0,0.00024109,2]
[363162958,1748604688141,-552.87,0.00024109,2]
[363162959,1748604688153,-420.0,0.00024109,2]
[363162960,1748604688163,-420.0,0.00024109,2]
[363162961,1748604688172,-480.01,0.00024109,2]
[363162962,1748604688182,-183.550623,0.00024109,2]
[363162963,1748604688192,-420.0,0.00024109,2]
[363162964,1748604688201,-420.0,0.00024109,2]
[363162965,1748604688213,-420.0,0.00024109,2]
[363162966,1748604688223,-420.0,0.00024109,2]
[363162967,1748604688233,-315.74177107,0.00024109,2]
[363162968,1748604688242,-420.0,0.00024109,2]
[363162969,1748604688251,-420.0,0.00024109,2]
[363162970,1748604688262,-420.0,0.00024109,2]
[363162971,1748604688271,-702.31,0.00024109,2]
[363162972,1748604688281,-446.43,0.00024109,2]
[363162973,1748604688290,-420.0,0.00024109,2]
[363162974,1748604688299,-438.29,0.00024109,2]
[363162975,1748604688309,-426.9,0.00024109,2]
[363162976,1748604688319,-420.0,0.00024109,2]
[363162977,1748604688329,-420.0,0.00024109,2]
[363162978,1748604688339,-930.8,0.00024109,2]
[363162979,1748604688348,-420.0,0.00024109,2]
[363162980,1748604688358,-420.0,0.00024109,2]
[363162981,1748604688367,-1732.59,0.00024109,2]
[363162982,1748604688376,-555.05,0.00024109,2]
[363162983,1748604688386,-420.0,0.00024109,2]
[363162984,1748604688396,-420.0,0.00024109,2]
[363162985,1748604688406,-420.0,0.00024109,2]
[363162986,1748604688415,-1062.63,0.00024109,2]
[363162987,1748604688424,-580.84,0.00024109,2]
[363162988,1748604688435,-420.0,0.00024109,2]
[363162989,1748604688444,-642.32,0.00024109,2]
[363162990,1748604688454,-718.47,0.00024109,2]
[363162991,1748604688464,-497.4,0.00024109,2]
[363162992,1748604688473,-984.73,0.00024109,2]
[363162993,1748604688482,-576.3,0.00024109,2]
[363162994,1748604688491,-420.0,0.00024109,2]
[363162995,1748604688501,-800.26,0.00024109,2]
[363162996,1748604688510,-718.15,0.00024109,2]
[363162997,1748604688519,-612.87,0.00024109,2]
[363162998,1748604688529,-770.54,0.00024109,2]
[363162999,1748604688539,-568.6,0.00024109,2]
[363163000,1748604688548,-728.67,0.00024109,2]
[363163001,1748604688559,-595.4,0.00024109,2]
[363163002,1748604688568,-420.0,0.00024109,2]
[363163003,1748604688578,-1523.16,0.00024109,2]
[363163004,1748604688587,-439.89,0.00024109,2]
[363163005,1748604688596,-1185.02,0.00024109,2]
[363163006,1748604688606,-473.85,0.00024109,2]
[363163007,1748604688616,-1155.34,0.00024109,2]
[363163008,1748604688625,-852.11,0.00024109,2]
[363163009,1748604688635,-536.09,0.00024109,2]
[363163010,1748604688646,-499.47,0.00024109,2]
[363163011,1748604688655,-1064.97,0.00024109,2]
[363163012,1748604688664,-553.07,0.00024109,2]
[363163013,1748604688673,-550.09,0.00024109,2]
[363163014,1748604688683,-1249.34,0.00024109,2]
[363163015,1748604688693,-1087.42,0.00024109,2]
[363163016,1748604688703,-420.0,0.00024109,2]
[363163017,1748604688712,-748.6,0.00024109,2]
[363163018,1748604688722,-420.0,0.00024109,2]
[363163019,1748604688731,-633.8,0.00024109,2]
[363163020,1748604688740,-569.25,0.00024109,2]
[363163021,1748604688750,-420.0,0.00024109,2]
[363163022,1748604688760,-528.37,0.00024109,2]
[363163023,1748604688770,-420.0,0.00024109,2]
[363163024,1748604688779,-1602.73,0.00024109,2]
[363163025,1748604688788,-569.24,0.00024109,2]
[363163026,1748604688797,-457.6,0.00024109,2]
[363163027,1748604688807,-1032.32,0.00024109,2]
[363163028,1748604688816,-707.39,0.00024109,2]
[363163029,1748604688825,-910.96,0.00024109,2]
[363163030,1748604688834,-476.94,0.00024109,2]
[363163031,1748604688844,-1017.67,0.00024109,2]
[363163032,1748604688853,-709.34,0.00024109,2]
[363163033,1748604688862,-501.18,0.00024109,2]
[363163034,1748604688871,-677.94,0.00024109,2]
[363163035,1748604688880,-1214.26,0.00024109,2]
[363163036,1748604688894,-729.59,0.00024109,2]
[363163037,1748604688903,-646.84,0.00024109,2]
[363163038,1748604688913,-473.0,0.00024109,2]
[363163039,1748604688922,-633.82,0.00024109,2]
[363163040,1748604688933,-1308.02,0.00024109,2]
[363163041,1748604688943,-454.15,0.00024109,2]
[363163042,1748604688952,-420.0,0.00024109,2]
[363163043,1748604688962,-530.64,0.00024109,2]
[363163044,1748604688972,-520.26,0.00024109,2]
[363163045,1748604688983,-460.64,0.00024109,2]
[363163046,1748604688993,-609.32,0.00024109,2]
[363163047,1748604689003,-420.0,0.00024109,2]
[363163048,1748604689013,-1385.17,0.00024109,2]
[363163049,1748604689023,-611.87,0.00024109,2]
[363163050,1748604689032,-457.58,0.00024109,2]
[363163051,1748604689042,-498.5,0.00024109,2]
[363163052,1748604689051,-1068.05,0.00024109,2]
[363163053,1748604689061,-151.0,0.00024109,7]
[363163054,1748604689070,-151.0,0.00024109,7]
[363163055,1748604689080,-534.02,0.00024109,2]
[363163056,1748604689090,-420.0,0.00024109,2]
[363163057,1748604689099,-423.02,0.00024109,2]
[363163058,1748604689109,-1806.1,0.00024109,2]
[363163059,1748604689118,-955.38,0.00024109,2]
[363163060,1748604689127,-437.24,0.00024109,2]
[363163061,1748604689136,-420.0,0.00024109,2]
[363163062,1748604689146,-998.33,0.00024109,2]
[363163063,1748604689155,-1133.83,0.00024109,2]
[363163064,1748604689164,-768.21,0.00024109,2]
[363163065,1748604689173,-774.62,0.00024109,2]
[363163066,1748604689183,-420.0,0.00024109,2]
[363163067,1748604689193,-735.92,0.00024109,2]
[363163068,1748604689203,-1319.04,0.00024109,2]
[363163069,1748604689212,-448.54,0.00024109,2]
[363163070,1748604689222,-420.0,0.00024109,2]
[363163071,1748604689232,-622.98,0.00024109,2]
[363163072,1748604689241,-420.0,0.00024109,2]
[363163073,1748604689251,-1350.91,0.00024109,2]
[363163074,1748604689260,-420.0,0.00024109,2]
[363163075,1748604689270,-420.0,0.00024109,2]
[363163076,1748604689279,-519.24,0.00024109,2]
[363163077,1748604689288,-489.38,0.00024109,2]
[363163078,1748604689298,-420.0,0.00024109,2]
[363163079,1748604689308,-480.12953738,0.00024109,2]
[363163080,1748604689319,-613.75,0.00024109,2]
[363163081,1748604689332,-606.72,0.00024109,2]
[363163082,1748604689343,-420.0,0.00024109,2]
[363163083,1748604689352,-420.0,0.00024109,2]
[363163084,1748604689362,-476.62,0.00024109,2]
[363163085,1748604689372,-611.09,0.00024109,2]
[363163086,1748604689381,-466.39,0.00024109,2]
[363163087,1748604689392,-420.0,0.00024109,2]
[363163088,1748604689403,-420.0,0.00024109,2]
[363163089,1748604689413,-479.89,0.00024109,2]
[363163090,1748604689423,-777.7,0.00024109,2]
[363163091,1748604689433,-544.4,0.00024109,2]
[363163092,1748604689443,-420.0,0.00024109,2]
[363163093,1748604689454,-1992.36,0.00024109,2]
[363163094,1748604689463,-449.12,0.00024109,2]
[363163095,1748604689473,-1690.08,0.00024109,2]
[363163096,1748604689482,-935.34,0.00024109,2]
[363163097,1748604689492,-474.41,0.00024109,2]
[363163098,1748604689502,-300.2767849,0.00024109,2]
[363163099,1748604689511,-420.0,0.00024109,2]
[363163100,1748604689520,-973.78,0.00024109,2]
[363163101,1748604689530,-574.23,0.00024109,2]
[363163102,1748604689539,-1023.52,0.00024109,2]
[363163103,1748604689549,-577.88,0.00024109,2]
[363163104,1748604689559,-1661.66,0.00024109,2]
[363163105,1748604689569,-531.71,0.00024109,2]
[363163106,1748604689579,-420.0,0.00024109,2]
[363163107,1748604689588,-772.75,0.00024109,2]
[363163108,1748604689598,-420.0,0.00024109,2]
[363163109,1748604689608,-605.59,0.00024109,2]
[363163110,1748604689618,-420.0,0.00024109,2]
[363163111,1748604689627,-420.0,0.00024109,2]
[363163112,1748604689637,-588.38,0.00024109,2]
[363163113,1748604689647,-578.91,0.00024109,2]
[363163114,1748604689657,-420.0,0.00024109,2]
[363163115,1748604689666,-606.64,0.00024109,2]
[363163116,1748604689676,-443.15,0.00024109,2]
[363163117,1748604689685,-420.0,0.00024109,2]
[363163118,1748604689695,-1125.77,0.00024109,2]
[363163119,1748604689706,-420.0,0.00024109,2]
[363163120,1748604689716,-938.03,0.00024109,2]
[363163121,1748604689725,-931.36,0.00024109,2]
[363163122,1748604689735,-420.0,0.00024109,2]
[363163123,1748604689745,-420.0,0.00024109,2]
[363163124,1748604689754,-1301.2,0.00024109,2]
[363163125,1748604689764,-775.29,0.00024109,2]
[363163126,1748604689773,-420.0,0.00024109,2]
[363163127,1748604689783,-420.0,0.00024109,2]
[363163128,1748604689792,-420.0,0.00024109,2]
[363163129,1748604689801,-575.37,0.00024109,2]
[363163130,1748604689811,-483.2,0.00024109,2]
[363163131,1748604689820,-534.46,0.00024109,2]
[363163132,1748604689830,-795.5,0.00024109,2]
[363163133,1748604689840,-420.0,0.00024109,2]
[363163134,1748604689849,-722.47,0.00024109,2]
[363163135,1748604689858,-420.0,0.00024109,2]
[363163136,1748604689868,-423.44,0.00024109,2]
[363163137,1748604689878,-487.54,0.00024109,2]
[363163138,1748604689889,-420.0,0.00024109,2]
[363163139,1748604689900,-674.84,0.00024109,2]
[363163140,1748604689910,-1084.93,0.00024109,2]
[363163141,1748604689919,-956.78,0.00024109,2]
[363163142,1748604689931,-1747.0,0.00024109,2]
[363163143,1748604689940,-523.54,0.00024109,2]
[363163144,1748604689950,-499.91,0.00024109,2]
[363163145,1748604690176,-903.59,0.00024109,2]
[363163146,1748604690192,-865.58,0.00024109,2]
[363163147,1748604690202,-900.74,0.00024109,2]
[363163148,1748604690212,-420.0,0.00024109,2]
[363163149,1748604690222,-1372.63,0.00024109,2]
[363163150,1748604690233,-588.22,0.00024109,2]
[363163151,1748604690242,-429.11,0.00024109,2]
[363163152,1748604690253,-770.98,0.00024109,2]
[363163153,1748604690263,-420.0,0.00024109,2]
[363163154,1748604690271,-1375.2,0.00024109,2]
[363163155,1748604690279,-768.17,0.00024109,2]
[363163156,1748604690287,-517.47,0.00024109,2]
[363163157,1748604690295,-420.0,0.00024109,2]
[363163158,1748604690303,-623.0,0.00024109,2]
[363163159,1748604690311,-793.05,0.00024109,2]
[363163160,1748604690319,-1241.06,0.00024109,2]
[363163161,1748604690328,-765.2,0.00024109,2]
[363163162,1748604690337,-420.0,0.00024109,2]
[363163163,1748604690347,-421.93,0.00024109,2]
[363163164,1748604690357,-421.91,0.00024109,2]
[363163165,1748604690366,-485.75,0.00024109,2]
[363163166,1748604690376,-420.0,0.00024109,2]
[363163167,1748604690386,-420.0,0.00024109,2]
[363163168,1748604690395,-283.56205,0.00024109,7]
[363163169,1748604690408,-491.63,0.00024109,2]
[363163170,1748604690417,-502.61,0.00024109,2]
[363163171,1748604690426,-283.56205,0.00024109,7]
[363163172,1748604690435,-430.15,0.00024109,2]
[363163173,1748604690445,-9469.1,0.00024109,2]
[363163174,1748604690454,-10073.27,0.00024109,2]
[363163175,1748604690464,-742.8,0.00024109,2]
[363163176,1748604690473,-420.0,0.00024109,2]
[363163177,1748604690482,-2689.83,0.00024109,2]
[363163178,1748604690491,-1981.59,0.00024109,2]
[363163179,1748604690501,-607.85,0.00024109,2]
[363163180,1748604690510,-564.47,0.00024109,2]
[363163181,1748604690519,-1369.33,0.00024109,2]
[363163182,1748604690528,-576.41,0.00024109,2]
[363163183,1748604690538,-12307.47,0.00024109,2]
[363163184,1748604690548,-1369.38,0.00024109,2]
[363163185,1748604690557,-863.99,0.00024109,2]
[363163186,1748604690567,-1245.87,0.00024109,2]
[363163187,1748604690576,-5194.13,0.00024109,2]
[363163188,1748604690586,-420.0,0.00024109,2]
[363163189,1748604690595,-880.77,0.00024109,2]
[363163190,1748604690605,-563.44,0.00024109,2]
[363163191,1748604690614,-2466.96,0.00024109,2]
[363163192,1748604690624,-420.0,0.00024109,2]
[363163193,1748604690633,-631.65,0.00024109,2]
[363163194,1748604690642,-659.94,0.00024109,2]
[363163195,1748604690653,-816.72,0.00024109,2]
[363163196,1748604690664,-420.0,0.00024109,2]
[363163197,1748604690674,-2995.72,0.00024109,2]
[363163198,1748604690684,-598.75,0.00024109,2]
[363163199,1748604690694,-2447.94,0.00024109,2]
[363163200,1748604690703,-2947.99,0.00024109,2]
[363163201,1748604690714,-420.0,0.00024109,2]
[363163202,1748604690723,-1153.83,0.00024109,2]
[363163203,1748604690733,-3076.84,0.00024109,2]
[363163204,1748604690743,-769.26,0.00024109,2]
[363163205,1748604690752,-924.16,0.00024109,2]
[363163206,1748604690762,-644.07,0.00024109,2]
[363163207,1748604690771,-420.0,0.00024109,2]
[363163208,1748604690781,-1310.77,0.00024109,2]
[363163209,1748604690791,-1040.66,0.00024109,2]
[363163210,1748604690801,-520.85,0.00024109,2]
[363163211,1748604690811,-1315.08,0.00024109,2]
[363163212,1748604690820,-420.0,0.00024109,2]
[363163213,1748604690831,-1506.01,0.00024109,2]
[363163214,1748604690840,-420.0,0.00024109,2]
[363163215,1748604690850,-1515.01,0.00024109,2]
[363163216,1748604690860,-466.46147891,0.00024109,2]
[363163217,1748604690870,-1337.36,0.00024109,2]
[363163218,1748604690880,-3730.71,0.00024109,2]
[363163219,1748604690892,-425.25,0.00024109,2]
[363163220,1748604690903,-1314.08,0.00024109,2]
[363163221,1748604690912,-759.43,0.00024109,2]
[363163222,1748604690922,-909.46,0.00024109,2]
[363163223,1748604690934,-420.0,0.00024109,2]
[363163224,1748604690943,-673.25,0.00024109,2]
[363163225,1748604690953,-612.32,0.00024109,2]
[363163226,1748604690963,-1256.48,0.00024109,2]
[363163227,1748604690973,-2157.82,0.00024109,2]
[363163228,1748604690983,-1075.01,0.00024109,2]
[363163229,1748604690993,-1309.63,0.00024109,2]
[363163230,1748604691003,-915.55,0.00024109,2]
[363163231,1748604691013,-2231.36,0.00024109,2]
[363163232,1748604691023,-1218.05,0.00024109,2]
[363163233,1748604691033,-420.0,0.00024109,2]
[363163234,1748604691042,-420.0,0.00024109,2]
[363163235,1748604691052,-6828.35,0.00024109,2]
[363163236,1748604691062,-2569.35,0.00024109,2]
[363163237,1748604691071,-1631.2,0.00024109,2]
[363163238,1748604691080,-611.68,0.00024109,2]
[363163239,1748604691090,-3976.57,0.00024109,2]
[363163240,1748604691100,-555.53,0.00024109,2]
[363163241,1748604691110,-1192.67,0.00024109,2]
[363163242,1748604691119,-3327.44,0.00024109,2]
[363163243,1748604691128,-828.67,0.00024109,2]
[363163244,1748604691138,-420.0,0.00024109,2]
[363163245,1748604691148,-3739.43,0.00024109,2]
[363163246,1748604691158,-420.0,0.00024109,2]
[363163247,1748604691168,-772.93,0.00024109,2]
[363163248,1748604691178,-2900.14,0.00024109,2]
[363163249,1748604691188,-3733.9,0.00024109,2]
[363163250,1748604691198,-1294.2,0.00024109,2]
[363163251,1748604691208,-1235.41,0.00024109,2]
[363163252,1748604691219,-5087.08,0.00024109,2]
[363163253,1748604691228,-1678.74,0.00024109,2]
[363163254,1748604691239,-582.4,0.00024109,2]
[363163255,1748604691249,-1439.67,0.00024109,2]
[363163256,1748604691259,-580.13,0.00024109,2]
[363163257,1748604691269,-6434.09,0.00024109,2]
[363163258,1748604691279,-759.66,0.00024109,2]
[363163259,1748604691289,-3623.76,0.00024109,2]
[363163260,1748604691299,-655.72,0.00024109,2]
[363163261,1748604691309,-642.76,0.00024109,2]
[363163262,1748604691320,-481.9,0.00024109,2]
[363163263,1748604691330,-447.8,0.00024109,2]
[363163264,1748604691340,-549.6,0.00024109,2]
[363163265,1748604691350,-3772.06,0.00024109,2]
[363163266,1748604691360,-2238.52,0.00024109,2]
[363163267,1748604691370,-656.16,0.00024109,2]
[363163268,1748604691379,-2601.73,0.00024109,2]
[363163269,1748604691389,-1054.88,0.00024109,2]
[363163270,1748604691400,-568.59,0.00024109,2]
[363163271,1748604691410,-1168.1,0.00024109,2]
[363163272,1748604691419,-1669.51,0.00024109,2]
[363163273,1748604691430,-581.44,0.00024109,2]
[363163274,1748604691440,-999.1,0.00024109,2]
[363163275,1748604691450,-420.0,0.00024109,2]
[363163276,1748604691460,-3565.93,0.00024109,2]
[363163277,1748604691470,-420.0,0.00024109,2]
[363163278,1748604691480,-644.61,0.00024109,2]
[363163279,1748604691490,-1021.83,0.00024109,2]
[363163280,1748604691500,-1573.75,0.00024109,2]
[363163281,1748604691510,-420.0,0.00024109,2]
[363163282,1748604691520,-1017.27,0.00024109,2]
[363163283,1748604691530,-700.99,0.00024109,2]
[363163284,1748604691539,-2494.53,0.00024109,2]
[363163285,1748604691549,-680.88,0.00024109,2]
[363163286,1748604691560,-2312.08,0.00024109,2]
[363163287,1748604691570,-1182.54,0.00024109,2]
[363163288,1748604691580,-906.67,0.00024109,2]
[363163289,1748604691589,-2382.61,0.00024109,2]
[363163290,1748604691599,-8094.13,0.00024109,2]
[363163291,1748604691609,-516.49,0.00024109,2]
[363163292,1748604691619,-3383.87,0.00024109,2]
[363163293,1748604691628,-927.42,0.00024109,2]
[363163294,1748604691638,-4483.36,0.00024109,2]
[363163295,1748604691648,-515.51,0.00024109,2]
[363163296,1748604691658,-639.62,0.00024109,2]
[363163297,1748604691668,-2136.49,0.00024109,2]
[363163298,1748604691678,-420.0,0.00024109,2]
[363163299,1748604691688,-839.58,0.00024109,2]
[363163300,1748604691698,-979.47,0.00024109,2]
[363163301,1748604691708,-1149.03,0.00024109,2]
[363163302,1748604691718,-608.6,0.00024109,2]
[363163303,1748604691728,-939.09,0.00024109,2]
[363163304,1748604691738,-1482.61,0.00024109,2]
[363163305,1748604691748,-1889.77,0.00024109,2]
[363163306,1748604691758,-750.99,0.00024109,2]
[363163307,1748604691767,-960.87,0.00024109,2]
[363163308,1748604691777,-1000.0,0.00024109,2]
[363163309,1748604691787,-514.33,0.00024109,2]
[363163310,1748604691797,-431.76,0.00024109,2]
[363163311,1748604691806,-866.43,0.00024109,2]
[363163312,1748604691816,-1436.8,0.00024109,2]
[363163313,1748604691826,-493.51,0.00024109,2]
[363163314,1748604691836,-10057.47,0.00024109,2]
[363163315,1748604691845,-754.64,0.00024109,2]
[363163316,1748604691855,-420.0,0.00024109,2]
[363163317,1748604691865,-574.11,0.00024109,2]
[363163318,1748604691874,-420.0,0.00024109,2]
[363163319,1748604691885,-2523.48,0.00024109,2]
[363163320,1748604691896,-864.09,0.00024109,2]
[363163321,1748604691909,-420.0,0.00024109,2]
[363163322,1748604691919,-595.39,0.00024109,2]
[363163323,1748604691929,-2343.17,0.00024109,2]
[363163324,1748604691939,-1350.61,0.00024109,2]
[363163325,1748604691948,-1275.82,0.00024109,2]
[363163326,1748604691959,-785.99,0.00024109,2]
[363163327,1748604691969,-10528.63,0.00024109,2]
[363163328,1748604691979,-420.0,0.00024109,2]
[363163329,1748604691989,-746.67,0.00024109,2]
[363163330,1748604691998,-1173.07,0.00024109,2]
[363163331,1748604692007,-1197.98,0.00024109,2]
[363163332,1748604692017,-2200.67,0.00024109,2]
[363163333,1748604692027,-845.16,0.00024109,2]
[363163334,1748604692037,-795.97,0.00024109,2]
[363163335,1748604692047,-1300.55,0.00024109,2]
[363163336,1748604692057,-785.56,0.00024109,2]
[363163337,1748604692067,-6935.34,0.00024109,2]
[363163338,1748604692077,-420.0,0.00024109,2]
[363163339,1748604692086,-420.0,0.00024109,2]
[363163340,1748604692095,-420.0,0.00024109,2]
[363163341,1748604692105,-1476.35,0.00024109,2]
[363163342,1748604692116,-5936.94,0.00024109,2]
[363163343,1748604692126,-420.0,0.00024109,2]
[363163344,1748604692136,-123071.45,0.00024109,2]
[363163345,1748604692145,-4600.82,0.00024109,2]
[363163346,1748604692156,-574.07,0.00024109,2]
[363163347,1748604692167,-420.0,0.00024109,2]
[363163348,1748604692176,-1760.95,0.00024109,2]
[363163349,1748604692186,-632.71,0.00024109,2]
[363163350,1748604692196,-420.0,0.00024109,2]
[363163351,1748604692206,-792.56,0.00024109,2]
[363163352,1748604692216,-891.11,0.00024109,2]
[363163353,1748604692226,-1035.56,0.00024109,2]
[363163354,1748604692236,-876.4,0.00024109,2]
[363163355,1748604692246,-3046.1,0.00024109,2]
[363163356,1748604692256,-868.44,0.00024109,2]
[363163357,1748604692266,-781.24,0.00024109,2]
[363163358,1748604692276,-1178.18,0.00024109,2]
[363163359,1748604692286,-31646.38,0.00024109,2]
[363163360,1748604692297,-420.0,0.00024109,2]
[363163361,1748604692307,-996.67,0.00024109,2]
[363163362,1748604692316,-1089.79,0.00024109,2]
[363163363,1748604692327,-420.0,0.00024109,2]
[363163364,1748604692336,-348.08626514,0.00024109,2]
[363163365,1748604692346,-875.57,0.00024109,2]
[363163366,1748604692355,-2264.05,0.00024109,2]
[363163367,1748604692365,-420.0,0.00024109,2]
[363163368,1748604692375,-1584.69,0.00024109,2]
[363163369,1748604692385,-951.88,0.00024109,2]
[363163370,1748604692395,-520.84,0.00024109,2]
[363163371,1748604692406,-1161.85,0.00024109,2]
[363163372,1748604692416,-52.75135571,0.00024109,2]
[363163373,1748604693603,-300.0,0.00019998,2]
[363163374,1748604693613,-371.0,0.00021776,2]
[363163375,1748604693623,-1314.0,0.00021798,2]
[363163376,1748604693634,-420.0,0.00021917,2]
[363163377,1748604693645,-1167.49,0.00021917,2]
[363163378,1748604693656,-420.0,0.00022191,2]
[363163379,1748604693665,-1167.49,0.00022191,2]
[363163380,1748604693675,-420.0,0.00022465,2]
[363163381,1748604693685,-1167.49,0.00022465,2]
[363163382,1748604693695,-420.0,0.00022739,2]
[363163383,1748604693706,-1064.51,0.00023013,2]
[363163384,1748604693716,-420.0,0.00023013,2]
[363163385,1748604693727,-1143.21,0.00023287,2]
[363163386,1748604693737,-1064.51,0.00023287,2]
[363163387,1748604693747,-1143.21,0.00023561,2]
[363163388,1748604693757,-1064.51,0.00023561,2]
[363163389,1748604693768,-1824.55,0.00023835,2]
[363163390,1748604693778,-1143.21,0.00023835,2]
[363163391,1748604693787,-1064.51,0.00023835,2]
[363163392,1748604693798,-371.15864429,0.00024109,2]
[363163393,1748604693808,-1451.673205,0.00024109,7]
[363163394,1748604693817,-1822.04,0.00024109,2]
[363163395,1748604693828,-420.0,0.00024109,2]
[363163396,1748604693838,-654.3,0.00024109,2]
[363163397,1748604693848,-1451.673205,0.00024109,7]
[363163398,1748604693858,-411.06190829,0.00024109,2]